{"text_format":"2","workbook":"xlsx","n_sheets":9,"sheets":["Záradék","Munkanem összesítő","19.Költségtérítések","21.Irtás, föld- és sziklamunka","36.Vakolás és rabicolás","42.Hideg- és melegburkolatok k","44.Fa- és műanyag szerkezet el","47.Felületképzés","72.Épületautomatika, -felügyel"],"not_rendered":{"charts":0,"images":0,"macros":0,"external_links":0,"defined_names":0,"comments":0,"pivot_tables":0},"unopened":[],"bounds":{"document_bytes":16777216,"sheet_cells":100000,"run_cost":"one","rows_first":2000,"rows_last":500,"rows_between":2000,"halvings":0,"cell_chars":16384,"cell_head_chars":4096},"cells_cut":0,"cells_raw":0,"read":"whole","date_system":"1900"}

{"sheet":"Záradék","index":0,"n_rows":26,"n_cols":4,"rows_kept":26,"cut":false,"hidden":false,"merged":[[20,2,20,3],[7,0,7,3],[12,0,12,3],[14,0,14,3],[17,2,17,3],[18,2,18,3],[19,2,19,3]]}
["Név : SZTE Bölcsészet- és Társadalomtudományi Kar"]
["                                       ",null,"                                       "]
["Cím : Szeged, Egyetem utca 2.",null," Kelt:      2022 év...........hó...nap "]
["                                       ",null," Készítette   :            "]
[]
[]
["A munka leírása:                       "]
["SZTE Bölcsészet- és Társadalomtudományi Kar Egyetem utca 2. szám alatti épületben meghatározott folyosói szakaszok és iroda festése, valamint a helyiségekhez tartozó nyílászárók pászítása és mázolása"]
["                                                                              "]
["                                                                              "]
["Készült:                                                           "]
["                                                                              "]
[]
[]
["Költségvetés főösszesítő"]
["Megnevezés",null,"Anyagköltség","Díjköltség"]
["1 Építmény közvetlen költségei",null,{"$f":"'Munkanem összesítő'!C9","v":0},{"$f":"'Munkanem összesítő'!D9","v":0}]
["2. Tartalékkeret(5%)",null,{"$f":"ROUND(C17+D17,0)*0.05","v":0}]
["3.1 ÁFA vetítési alap",null,{"$f":"ROUND(C17+D17,0)+C18","v":0}]
["3.2 ÁFA",0.27,{"$f":"ROUND(C19*B20,0)","v":0}]
["4 A munka ára (HUF)",null,{"$f":"ROUND(C20+C19,0)","v":0}]
["Megnevezés",null,"Anyagköltség","Díjköltség"]
[]
[]
["                                       "]
["                                       "]

{"sheet":"Munkanem összesítő","index":1,"n_rows":9,"n_cols":4,"rows_kept":9,"cut":false,"hidden":false,"merged":[]}
["Ssz.","Megnevezés","Anyagköltség","Díjköltség"]
["19","Költségtérítések",{"$f":"'19.Költségtérítések'!H4","v":0},{"$f":"'19.Költségtérítések'!I4","v":0}]
["21","Irtás, föld- és sziklamunka",{"$f":"'21.Irtás, föld- és sziklamunka'!H4","v":0},{"$f":"'21.Irtás, föld- és sziklamunka'!I4","v":0}]
["36","Vakolás és rabicolás",{"$f":"'36.Vakolás és rabicolás'!H9","v":0},{"$f":"'36.Vakolás és rabicolás'!I9","v":0}]
[42,"Hideg- és melegburkolatok",{"$f":"'42.Hideg- és melegburkolatok k'!H4","v":0},{"$f":"'42.Hideg- és melegburkolatok k'!I4","v":0}]
["44","Fa- és műanyag szerkezet elhelyezése",{"$f":"'44.Fa- és műanyag szerkezet el'!H6","v":0},{"$f":"'44.Fa- és műanyag szerkezet el'!I6","v":0}]
["47","Felületképzés",{"$f":"'47.Felületképzés'!H13","v":0},{"$f":"'47.Felületképzés'!I13","v":0}]
[72,"Épületautomatika, -felügyel",{"$f":"'72.Épületautomatika, -felügyel'!H6","v":0},{"$f":"'72.Épületautomatika, -felügyel'!I6","v":0}]
[null,"Összesen (HUF)",{"$f":"SUM(C2:C8)","v":0},{"$f":"SUM(D2:D8)","v":0}]

{"sheet":"19.Költségtérítések","index":2,"n_rows":4,"n_cols":9,"rows_kept":4,"cut":false,"hidden":false,"merged":[]}
["Ssz.","Tételszám","Tétel szövege","Menny.","Egység","Anyag egységár","Díj egységre","Anyag összesen","Díj összesen"]
[1,"19-090-1","Építmények átadás előtti utolsó takarítása (pipere)",1,"db",null,null,{"$f":"ROUND(F2*D2,0)","v":0},{"$f":"ROUND(G2*D2,0)","v":0}]
[2,"90-008-1-0110202","Festés előtt burkolatok takarásának készítése, Takarás készítése fóliával",8,"100 m2",null,null,{"$f":"ROUND(F3*D3,0)","v":0},{"$f":"ROUND(G3*D3,0)","v":0}]
[null,null,"Munkanem összesen (HUF)",{"$nulls":4},{"$f":"ROUND(SUM(H2:H3),0)","v":0},{"$f":"ROUND(SUM(I2:I3),0)","v":0}]

{"sheet":"21.Irtás, föld- és sziklamunka","index":3,"n_rows":4,"n_cols":9,"rows_kept":4,"cut":false,"hidden":false,"merged":[]}
["Ssz.","Tételszám","Tétel szövege","Menny.","Egység","Anyag egységár","Díj egységre","Anyag összesen","Díj összesen"]
[1,"21-011-11.3","Építési törmelék konténeres elszállítása, lerakása, lerakóhelyi díjjal, 5,0 m³-es konténerbe",1,"db",null,null,{"$f":"ROUND(F2*D2,0)","v":0},{"$f":"ROUND(G2*D2,0)","v":0}]
[2,"21-011-12","Munkahelyi depóniából építési törmelék konténerbe rakása,  kézi erővel, önálló munka esetén elszámolva, konténer szállítás nélkül",5,"m3",null,null,{"$f":"ROUND(F3*D3,0)","v":0},{"$f":"ROUND(G3*D3,0)","v":0}]
[null,null,"Munkanem összesen (HUF)",{"$nulls":4},{"$f":"ROUND(SUM(H2:H3),0)","v":0},{"$f":"ROUND(SUM(I2:I3),0)","v":0}]

{"sheet":"36.Vakolás és rabicolás","index":4,"n_rows":9,"n_cols":9,"rows_kept":9,"cut":false,"hidden":false,"merged":[]}
["Ssz.","Tételszám","Tétel szövege","Menny.","Egység","Anyag egységár","Díj egységre","Anyag összesen","Díj összesen"]
[1,"36-000-1.1.1","Vakolat leverése oldalfalról vagy mennyezetről 1,5 cm vastagságig falazó, cementes mészhabarcs",15,"m2",null,null,{"$f":"ROUND(F2*D2,0)","v":0},{"$f":"ROUND(G2*D2,0)","v":0}]
[2,"36-002-1","Felület portalanítása, előnedvesítése porlasztott vízsugárral, vakolás előtt",15,"m2",null,null,0,0]
[3,"36-002-11.1-0415911","Tapadóhíd képzése gyári zsákos gúzanyaggal, kézi erővel,",15,"m2",null,null,0,0]
[4,"36-002-13-0415915","Szellőző, szárító vakolat alapozók felhordása, falazatok vakolatfelújításához, ",15,"m2",null,null,0,0]
[5,"36-003-11.1-0414720","Oldalfalvakolat vagy mennyezet vakolat simítása, előkevert gyári szárazhabarcsból, 5 mm vastagságig, kézi felhordással (a gyártó által megadott kg/m²/mm rétegvastagsággal),",15,"m2",null,null,0,0]
[6,"36-003-2.1.1.1.1-0414710","Mennyezetvakolat készítése, kézi felhordással, zsákos kiszerelésű szárazhabarcsból, sima, normál mész-cement vakolat, 1 cm vastagságban, ",5,"m2",null,null,0,0]
[7,"36-003-1.1.1.1.1-0414710","Oldalfalvakolat készítése, kézi felhordással, zsákos kiszerelésű szárazhabarcsból, sima, normál mész-cement vakolat, 1 cm vastagságban, ",10,"m2",null,null,0,0]
[null,null,"Munkanem összesen (HUF)",{"$nulls":4},{"$f":"SUM(H2:H8)","v":0},{"$f":"SUM(I2:I8)","v":0}]

{"sheet":"42.Hideg- és melegburkolatok k","index":5,"n_rows":4,"n_cols":9,"rows_kept":4,"cut":false,"hidden":false,"merged":[]}
["Ssz.","Tételszám","Tétel szövege","Menny.","Egység","Anyag egységár","Díj egységre","Anyag összesen","Díj összesen"]
[1,"42-000-4.1","Műkő burkolatok bontása, padlóburkolat műkő vagy terrazzó felvésése  5 cm vastagságig",3,"m2",null,null,{"$f":"ROUND(F2*D2,0)","v":0},{"$f":"ROUND(G2*D2,0)","v":0}]
[2,"42-031-1.1.1.1.2","Műkőburkolatok; padlóburkolat, helyszíni felhordással, felületi megdolgozás nélkül, 5,5 cm vastagságban, felület 20%-áig többszínű mintázattal",6,"m2",null,null,{"$f":"ROUND(F3*D3,0)","v":0},{"$f":"ROUND(G3*D3,0)","v":0}]
[null,null,"Munkanem összesen (HUF)",{"$nulls":4},{"$f":"ROUND(SUM(H2:H3),0)","v":0},{"$f":"ROUND(SUM(I2:I3),0)","v":0}]

{"sheet":"44.Fa- és műanyag szerkezet el","index":6,"n_rows":6,"n_cols":9,"rows_kept":6,"cut":false,"hidden":false,"merged":[]}
["Ssz.","Tételszám","Tétel szövege","Menny.","Egység","Anyag egységár","Díj egységre","Anyag összesen","Díj összesen"]
[1,"44-002-2-0184115","Fa ablakdeszka, könyöklő, elhelyezése (szereléssel), Ablakdeszka, (belső párkány) AD 260 Anyagminőség: S64, T68",11,"m",null,null,{"$f":"ROUND(F2*D2,0)","v":0},{"$f":"ROUND(G2*D2,0)","v":0}]
[2,"44-000-4","Küszöbök megszüntetése, felszedése",3,"db",null,null,{"$f":"ROUND(F3*D3,0)","v":0},{"$f":"ROUND(G3*D3,0)","v":0}]
[3,"44-090-1.6","Meglévő mindenféle nyílászáró szerkezet kisebb javítása  faanyag- és/vagy vasalatpótlással, 2 m² felett, vasalatpótlás nélkül",14,"db",null,null,{"$f":"ROUND(F4*D4,0)","v":0},{"$f":"ROUND(G4*D4,0)","v":0}]
[4,"K","Zsanérok megerősítése",10,"db",null,null,{"$f":"ROUND(F5*D5,0)","v":0},{"$f":"ROUND(G5*D5,0)","v":0}]
[null,null,"Munkanem összesen (HUF)",{"$nulls":4},{"$f":"SUM(H2:H5)","v":0},{"$f":"SUM(I2:I5)","v":0}]

{"sheet":"47.Felületképzés","index":7,"n_rows":13,"n_cols":9,"rows_kept":13,"cut":false,"hidden":false,"merged":[]}
["Ssz.","Tételszám","Tétel szövege","Menny.","Egység","Anyag egységár","Díj egységre","Anyag összesen","Díj összesen"]
[1,"47-000-1.21.1.1.2.2","Belső festéseknél felület előkészítése, részmunkák; glettelés, hagyományos meszes glettel, vakolt felületen, lépcsőházban, toldott létráról, tagolt felületen",11,"100 m2",null,null,{"$f":"ROUND(F2*D2,0)","v":0},{"$f":"ROUND(G2*D2,0)","v":0}]
[3,"47-000-7.1.2.2","Fafelületek mázolásának előkészítő és részmunkái; régi olajmázolás eltávolítása fa nyílászáró szerkezetről, lekaparással (raskettázás), tagolt felületről",233,"m2",null,null,{"$f":"ROUND(F3*D3,0)","v":0},{"$f":"ROUND(G3*D3,0)","v":0}]
[4,"47-000-7.2.3.2-0160785","Fafelületek mázolásának előkészítő és részmunkái; fafelület beeresztő alapozása egy rétegben, lenolajos alapozóval, tagolt felületen,  alapozó fához, alkáli vakolatokhoz és gipszstukkókhoz",233,"m2",null,null,0,0]
[5,"47-000-7.3.2-0150112","Fafelületek mázolásának előkészítő és részmunkái; simító tapaszolás fafelületen, egyszeri és minden további, tagolt felületen, ",46,"m2",null,null,0,0]
[6,"47-011-5.2.2.2-0141882","Lábazati olajfestések, lenolaj kötőanyagú, fehér vagy színes falfestékkel, ásványi alapfelületen,  két rétegben, tagolt sima felületen, ",84,"m2",null,null,0,0]
[7,"47-011-41.3.1.1-0159521","Díszítő festések, diszperziós festések, akrilát bázisú vizes-diszperziós  dekoratív, gyárilag színezett lazúr falfestékkel, megfelelően előkészített alapfelületen, vakolaton, két rétegben, tagolatlan sima felületen,  attraktív lazúr, beltéri felületek festésére, selyemmatt, színezhető, fehér festékcsepekkel",10,"m2",null,null,0,0]
[8,"47-011-15.1.2.3-0425271","Diszperziós festés (két rétegben) műanyag bázisú vizes-diszperziós  fehér vagy gyárilag színezett festékkel, új vagy régi lekapart, előkészített alapfelületen  vagy jól tapadó meglévő festékrétegen, beton felületen, két rétegben, lépcsőházban, tagolt sima felületen,  beltéri festék, sima felületen 2 rétegben, fehér",985,"m2",null,null,0,0]
[9,"47-031-1.5.1.2-0160016","Belső fafelületek zománclakkozása, műgyantabázisú (alkid) oldószertartalmú zománccal, tagolt felületen, oldószeres selyemfényű zománc fehér",170,"m2",null,null,{"$f":"ROUND(F9*D9,0)","v":0},{"$f":"ROUND(G9*D9,0)","v":0}]
[10,"47-031-1.3.1.1-0130701","Belső fafelületek fedőmázolása, műgyantabázisú (alkid) oldószertartalmú alapozóval, tagolatlan felületen, ",170,"m2",null,null,0,0]
[11,"47-031-3.6.1.2-0137075","Külső fafelületek zománclakkozása, fa nyílászáró szerkezeten,oldószeres zománcfestékkel, két rétegben, tagolt felületen,  vízháztartást szabályozó selyemfényu lakk faablakokra, kül- és beltérben, színes",62,"m2",null,null,0,0]
[12,"47-031-1.9.1.2","Belső fafelületek lakkozása, színtelen ecsetelhető beltéri lakk, korlátokon",87,"m",null,null,{"$f":"ROUND(F12*D12,0)","v":0},{"$f":"ROUND(G12*D12,0)","v":0}]
[null,null,"Munkanem összesen (HUF)",{"$nulls":4},{"$f":"SUM(H2:H12)","v":0},{"$f":"SUM(I2:I12)","v":0}]

{"sheet":"72.Épületautomatika, -felügyel","index":8,"n_rows":6,"n_cols":9,"rows_kept":6,"cut":false,"hidden":false,"merged":[]}
["Ssz.","Tételszám","Tétel szövege","Menny.","Egység","Anyag egységár","Díj egységre","Anyag összesen","Díj összesen"]
[1,"72-012-11.8.1","1. Kétszárnyú udvari bejárat \nLABEL NEXT nyílóajtó automatika 2 db \nFelszereltség\nMűanyag előtető 1 db\nLABEL NEXT Nyílóajtó automatika 2 db\nToló csúszókar normál 2 db\n1 Evolus kulcsos programkapcsoló fehér 1 db\n3 Hotron vezeték nélküli könyökkapcsoló 2 db\n4 Vevőegység vezeték nélküli könyökkapcsolóhoz 2 db\n",1,"db",null,null,{"$f":"ROUND(F2*D2,0)","v":0},{"$f":"ROUND(G2*D2,0)","v":0}]
[2,"72-012-11.8.2"," 2. Kétszárnyú lépcsőházi ajtó\n LABEL NEXT nyílóajtó automatika 2 db\n Felszereltség\n LABEL NEXT Nyílóajtó automatika 2 db\n Toló csúszókar normál 2 db\n 1 Evolus kulcsos programkapcsoló fehér 1 db\n 3 Hotron vezeték nélküli könyökkapcsoló 2 db\n 4 Vevőegység vezeték nélküli könyökkapcsolóhoz 2 db\n",1,"db",null,null,{"$f":"ROUND(F3*D3,0)","v":0},{"$f":"ROUND(G3*D3,0)","v":0}]
[3,"72-012-11.8.3"," \n 3. Egyszárnyú lépcsőházi ajtó 1 db\n LABEL NEXT nyílóajtó automatika 1 db\n Felszereltség\n LABEL NEXT Nyílóajtó automatika 1 db\n Toló csúszókar normál 1 db\n 1 Evolus kulcsos programkapcsoló fehér 1 db\n 3 Hotron vezeték nélküli könyökkapcsoló 1 db\n 4 Vevőegység vezeték nélküli könyökkapcsolóhoz 1 db\n",1,"db",null,null,{"$f":"ROUND(F4*D4,0)","v":0},{"$f":"ROUND(G4*D4,0)","v":0}]
[]
[null,null,"Munkanem összesen (HUF)",{"$nulls":4},{"$f":"SUM(H2:H4)","v":0},{"$f":"SUM(I2:I4)","v":0}]